fUST/lending_fUST_20250613
["ID","MTS","AMOUNT","RATE_DAILY","PERIOD"]
[365593332,1749797453379,-169.506464,0.00022775,7]
[365593334,1749797453388,-151.0,0.00022775,7]
[365593336,1749797453397,-151.0,0.00022775,7]
[365593338,1749797453407,-151.0,0.00022775,7]
[365593340,1749797453417,-678.588038,0.00022775,7]
[365593342,1749797453432,-678.588038,0.00022775,7]
[365593344,1749797453441,-156.86537,0.00022775,7]
[365593346,1749797453451,-156.86537,0.00022775,7]
[365593348,1749797453461,-224.284924,0.00022775,7]
[365593350,1749797453471,-224.284924,0.00022775,7]
[365593352,1749797453481,-844.94977992,0.0002278,3]
[365593354,1749797453490,-12531.02669373,0.0002278,3]
[365593356,1749797453500,-500.0,0.00022785,2]
[365593358,1749797453511,-223.436447,0.00022785,7]
[365593360,1749797453520,-223.436447,0.00022785,7]
[365593362,1749797453529,-505.27708744,0.00022788,2]
[365593364,1749797453538,-1000.0,0.000228,8]
[365593366,1749797453548,-386.73254,0.000228,7]
[365593368,1749797453557,-386.73254,0.000228,7]
[365593369,1749797453567,-160.01251104,0.00022808,3]
[365593372,1749797453576,-460.0,0.0002282,4]
[365593374,1749797453588,-460.0,0.0002282,4]
[365593376,1749797453598,-483.27,0.0002282,4]
[365593377,1749797453607,-151.0,0.00022824,7]
[365593379,1749797453617,-192.096519,0.00022825,7]
[365593381,1749797453626,-192.096519,0.00022825,7]
[365593383,1749797453636,-2471.69475632,0.00022831,8]
[365593385,1749797453646,-151.0,0.00022894,3]
[365593387,1749797453656,-151.0,0.00022894,3]
[365593389,1749797453665,-151.0,0.00022894,3]
[365593391,1749797453678,-151.0,0.00022894,3]
[365593393,1749797453688,-151.0,0.00022894,3]
[365593395,1749797453698,-151.0,0.00022894,3]
[365593397,1749797453707,-151.0,0.00022894,3]
[365593399,1749797453717,-151.0,0.00022894,3]
[365593401,1749797453726,-151.0,0.00022894,3]
[365593403,1749797453739,-151.0,0.00022894,3]
[365593405,1749797453749,-151.0,0.00022894,3]
[365593408,1749797453759,-151.0,0.000229,7]
[365593409,1749797453769,-594.270939,0.00022904,3]
[365593411,1749797453779,-255.467655,0.00022911,7]
[365593413,1749797453789,-151.0,0.00022911,7]
[365593416,1749797453800,-678.588038,0.00022911,7]
[365593418,1749797453810,-678.588038,0.00022911,7]
[365593420,1749797453821,-1146.885891,0.00022924,7]
[365593422,1749797453831,-156.86537,0.00022924,7]
[365593423,1749797453840,-156.86537,0.00022924,7]
[365593425,1749797453850,-224.284924,0.00022924,7]
[365593428,1749797453860,-224.284924,0.00022924,7]
[365593429,1749797453870,-2471.69475632,0.00022934,8]
[365593432,1749797453880,-151.0,0.00022935,7]
[365593433,1749797453889,-151.0,0.00022935,7]
[365593435,1749797453899,-162.60086733,0.00022959,2]
[365593446,1749797453993,-386.73254,0.00022973,7]
[365593448,1749797454003,-386.73254,0.00022973,7]
[365593450,1749797454013,-192.096519,0.00022973,7]
[365593452,1749797454023,-192.096519,0.00022973,7]
[365593454,1749797454032,-151.0,0.00022995,7]
[365593456,1749797454042,-207.93432221,0.00022999,2]
[365593458,1749797454052,-36526.1086925,0.00023,2]
[365593460,1749797454064,-1000.0,0.00023,23]
[365593462,1749797454073,-294.89,0.00023,7]
[365593464,1749797454082,-245094.21870698,0.00023,3]
[365593466,1749797454095,-421.83972121,0.00023,3]
[365596867,1749797493218,1218.5198245,0.00020436,2]
[365597425,1749797531180,589.24739821,0.00020436,2]
[365597426,1749797531204,2448.45333333,0.00020436,2]
[365597427,1749797531406,2293.12167526,0.00020436,2]
[365597434,1749797561328,155.33165807,0.00020428,2]
[365597438,1749797572780,600.0,0.00019497,2]
[365597454,1749797647587,-1960.90069614,0.00020224,2]
[365597455,1749797647609,-1486.09930386,0.0002027,2]
[365597466,1749797698557,2763.29271717,0.0002,2]
[365597468,1749797703339,1423.38842032,0.000181,2]
[365597469,1749797703367,701.47532825,0.000181,2]
[365597472,1749797714916,1829.76493253,0.0002,2]
[365597474,1749797717220,-184.210873,0.00020064,2]
[365597475,1749797717242,-158.9838448,0.00020117,2]
[365597476,1749797717265,-116.8052822,0.00020224,2]
[365597481,1749797750940,181.0,0.00016438,3]
[365597489,1749797782799,-1621.0,0.00020282,2]
[365597494,1749797813147,700.0,0.00019497,2]
[365597501,1749797848793,-1429.0,0.00020288,2]
[365597502,1749797849143,6741.52840589,0.00019957,2]
[365597503,1749797849171,10153.76866667,0.00019957,2]
[365597504,1749797849198,8004.70292744,0.00019957,2]
[365597506,1749797852653,2149.06573923,0.00019957,2]
[365597507,1749797852680,789.12128647,0.00019957,2]
[365597513,1749797980991,180.12969338,0.00019269,2]
[365597514,1749797986347,-1696.0,0.00020117,2]
[365597515,1749798003170,2070.06863251,0.000181,2]
[365597516,1749798010022,864.2992677,0.00019913,2]
[365597520,1749798053988,-58.4414491,0.00020117,2]
[365597521,1749798054012,-1473.5585509,0.00020265,2]
[365597525,1749798066896,180.0,0.00016438,3]
[365597528,1749798173603,235.3532387,0.00019968,2]
[365597529,1749798202179,296.994561,0.00013699,2]
[365597531,1749798251499,-296.0,0.00020187,2]
[365597586,1749798363590,800.0,0.00019497,2]
[365597587,1749798365751,162.5327451,0.00019685,2]
[365597588,1749798366849,677.211676,0.00019884,2]
[365597591,1749798383352,197.0,0.00018082,3]
[365597632,1749798540094,666.0,0.00019679,2]
[365597633,1749798551352,2685.0226669,0.00019689,2]
[365597634,1749798585594,350.03489891,0.00019637,2]
[365597635,1749798585619,8975.96351299,0.00019637,2]
[365597637,1749798594244,1177.80515368,0.00019637,2]
[365597638,1749798594269,342.20615422,0.00019637,2]
[365597639,1749798601535,800.0,0.00019497,2]
[365597642,1749798614371,594.51476845,0.000189,2]
[365597682,1749798632711,-0.994561,0.00020187,2]
[365597683,1749798632721,-160.0,0.00020293,2]
[365597684,1749798632731,-201.20265653,0.00020446,2]
[365597685,1749798632741,-630.366,0.00020453,2]
[365597686,1749798632751,-180.36399387,0.00020453,2]
[365597687,1749798632760,-800.0,0.00020593,2]
[365597689,1749798632769,-795.27808948,0.000206,2]
[365597692,1749798632794,-871.23191052,0.000206,2]
[365597694,1749798632803,-226.3546816,0.0002071,2]
[365597698,1749798633019,-1200.0,0.0002074,2]
[365597699,1749798633029,-30.548107,0.00020741,2]
[365597700,1749798633046,-4949.86145182,0.00020741,2]
[365597992,1749798641096,-54.86352944,0.00020741,2]
[365597994,1749798641106,-5606.86,0.00020887,10]
[365597996,1749798641119,-171.97399358,0.00020896,2]
[365597998,1749798641131,-106.10598123,0.00020896,2]
[365598093,1749798642993,-46.89401877,0.00020896,2]
[365598094,1749798643003,-217.69410514,0.00020896,2]
[365598095,1749798643015,-282.30589486,0.00020896,2]
[365598096,1749798643025,-500.0,0.00020896,2]
[365598097,1749798643034,-206.40871627,0.00020896,2]
[365598353,1749798645870,-293.59128373,0.00020896,2]
[365598355,1749798645883,-500.0,0.00020896,2]
[365598357,1749798645893,-1572.70742221,0.00020896,2]
[365598359,1749798645902,-500.0,0.00020896,2]
[365598361,1749798645912,-500.0,0.00020896,2]
[365598363,1749798645921,-425.06177205,0.00020896,2]
[365598365,1749798645930,-500.0,0.00020896,2]
[365598367,1749798645940,-500.0,0.00020896,2]
[365598369,1749798645949,-500.0,0.00020896,2]
[365598371,1749798645958,-1572.70742221,0.00020896,2]
[365598373,1749798645968,-500.0,0.00020896,2]
[365598376,1749798645978,-239.2971387,0.00020896,2]
[365598378,1749798645988,-500.0,0.00020896,2]
[365598380,1749798645998,-128.68023588,0.00020896,2]
[365599150,1749798685979,766.1209014,0.00019921,2]
[365599151,1749798686020,181.515222,0.00019921,2]
[365599152,1749798715902,250.7541781,0.00019891,2]
[365599162,1749798744203,157.0,0.0002,2]
[365599163,1749798745036,157.0,0.0002,2]
[365599164,1749798766737,157.0,0.0002,2]
[365599165,1749798791928,1180.6,0.00024944,60]
[365599166,1749798818096,186.0,0.0002,3]
[365599167,1749798826484,157.0,0.0002,3]
[365599168,1749798839959,700.0,0.00019497,2]
[365599169,1749798840647,160.72317695,0.0002,3]
[365599172,1749798843630,5543.93426555,0.00019886,2]
[365599173,1749798843664,10153.76866667,0.00019886,2]
[365599174,1749798843697,9202.29706778,0.00019886,2]
[365599175,1749798878658,180.70896144,0.00019269,2]
[365599176,1749798915587,452.32193249,0.000189,2]
[365599178,1749798996506,1711.95,0.00024936,60]
[365599181,1749799216813,301.54795499,0.000189,2]
[365599183,1749799303583,16.89274997,0.0002,2]
[365599184,1749799303610,3984.10725003,0.0002,2]
[365599185,1749799304039,394.2,0.00023,120]
[365599189,1749799518247,270.95558828,0.000189,2]
[365599190,1749799552479,700.0,0.00019497,2]
[365599191,1749799562835,666.0,0.00019821,2]
[365599194,1749799567693,338.605838,0.00019818,2]
[365599198,1749799605395,-166.0,0.00020274,2]
[365599199,1749799605423,-423.0,0.00020293,2]
[365599200,1749799672185,181.515222,0.00019804,2]
[365599202,1749799713586,4012.58476836,0.00018,2]
[365599203,1749799713616,10153.76866667,0.00018,2]
[365599204,1749799713645,10153.76866667,0.00018,2]
[365599205,1749799713674,10153.76866667,0.00018,2]
[365599206,1749799713704,10153.76866667,0.00018,2]
[365599207,1749799713734,10153.76866667,0.00018,2]
[365599208,1749799713764,10153.76866667,0.00018,2]
[365599209,1749799713795,5596.79095081,0.00018,2]
[365599210,1749799714452,4556.97771586,0.0002,2]
[365599211,1749799714616,1677.16276052,0.0002,2]
[365599213,1749799715577,2685.91937034,0.0002,2]
[365599214,1749799718486,4062.32249788,0.0002,2]
[365599215,1749799718664,302.0,0.0002,120]
[365599216,1749799718897,3578.912559,0.00024952,120]
[365599217,1749799721032,1728.36403793,0.0002,2]
[365599218,1749799721061,10153.76866667,0.0002,2]
[365599219,1749799721089,10153.76866667,0.0002,2]
[365599220,1749799721117,10153.76866667,0.0002,2]
[365599221,1749799721144,10153.76866667,0.0002,2]
[365599222,1749799721171,10153.76866667,0.0002,2]
[365599223,1749799721198,10153.76866667,0.0002,2]
[365599224,1749799721226,2660.95303743,0.0002,2]
[365599225,1749799722690,501.44885155,0.0002,2]
[365599231,1749799756105,342.0421259,0.00019794,2]
[365599237,1749799786434,700.0,0.00019497,2]
[365599243,1749799819706,180.63705885,0.000189,2]
[365599269,1749799831940,-225.0,0.00020592,2]
[365599270,1749799831950,-700.0,0.00020593,2]
[365599272,1749799831960,-229.49463576,0.00020737,2]
[365599274,1749799831970,-2223.04495043,0.00020756,2]
[365599275,1749799831979,-802.05310043,0.00020756,2]
[365599276,1749799831988,-545.23648236,0.0002076,2]
[365599277,1749799831998,-1200.0,0.00020844,2]
[365599278,1749799832008,-300.0,0.00020845,2]
[365599279,1749799832017,-300.0,0.00020845,2]
[365599280,1749799832027,-153.50503736,0.00020845,2]
[365599281,1749799832074,-146.49496264,0.00020845,2]
[365599282,1749799832084,-300.0,0.00020845,2]
[365599283,1749799832094,-101.98727756,0.00020846,10]
[365599294,1749799832842,-4570.39272244,0.00020846,10]
[365599295,1749799832852,-50000.0,0.00020855,2]
[365599296,1749799832862,-156.587,0.00020856,2]
[365599297,1749799832871,-11828.2442632,0.00020856,2]
[365599300,1749799838353,-334.25482518,0.00020636,2]
[365599301,1749799838363,-1781.75,0.00020742,2]
[365599302,1749799838373,-500.0,0.00020855,2]
[365599303,1749799838383,-500.0,0.00020855,2]
[365599304,1749799838396,-500.0,0.00020855,2]
[365599305,1749799838405,-500.0,0.00020855,2]
[365599306,1749799838415,-500.0,0.00020855,2]
[365599307,1749799838424,-297.93124611,0.00020855,2]
[365599308,1749799838435,-500.0,0.00020855,2]
[365599309,1749799838444,-500.0,0.00020855,2]
[365599310,1749799838454,-536.81770472,0.00020855,2]
[365599311,1749799838464,-500.03134381,0.00020855,2]
[365599312,1749799838475,-802.98768188,0.00020855,2]
[365599313,1749799838484,-500.0,0.00020855,2]
[365599314,1749799838494,-613.3877467,0.00020855,2]
[365599315,1749799838504,-500.0,0.00020855,2]
[365599316,1749799838513,-500.0,0.00020855,2]
[365599317,1749799838523,-381.7710061,0.00020855,2]
[365599318,1749799838533,-500.0,0.00020855,2]
[365599319,1749799838542,-500.0,0.00020855,2]
[365599320,1749799838552,-500.0,0.00020855,2]
[365599321,1749799838561,-500.0,0.00020855,2]
[365599322,1749799838571,-500.0,0.00020855,2]
[365599323,1749799838581,-500.0,0.00020855,2]
[365599324,1749799838590,-802.98768188,0.00020855,2]
[365599325,1749799838720,-500.0,0.00020855,2]
[365599326,1749799838731,-500.0,0.00020855,2]
[365599327,1749799838740,-500.0,0.00020855,2]
[365599328,1749799838751,-457.40084909,0.00020855,2]
[365599329,1749799838761,-168.87429004,0.00020855,2]
[365599330,1749799838770,-203.69041323,0.00020855,2]
[365599331,1749799838780,-500.0,0.00020855,2]
[365599332,1749799838789,-500.0,0.00020855,2]
[365599333,1749799838799,-500.0,0.00020855,2]
[365599334,1749799838809,-802.98768188,0.00020855,2]
[365599335,1749799838819,-500.0,0.00020855,2]
[365599336,1749799838829,-650.0,0.00020855,2]
[365599337,1749799838839,-500.0,0.00020855,2]
[365599338,1749799838848,-500.0,0.00020855,2]
[365599339,1749799838857,-500.0,0.00020855,2]
[365599340,1749799838867,-802.98768188,0.00020855,2]
[365599341,1749799838876,-250.0,0.00020855,2]
[365599342,1749799838887,-500.0,0.00020855,2]
[365599343,1749799838897,-802.98768188,0.00020855,2]
[365599344,1749799838908,-10170.01564724,0.00020856,2]
[365599345,1749799838917,-314.3301321,0.00020856,2]
[365599346,1749799838927,-25365.70704422,0.00020856,2]
[365599347,1749799838937,-300.0,0.00020857,2]
[365599348,1749799838946,-1045.29,0.00020858,3]
[365599349,1749799838956,-522.64,0.00020858,3]
[365599350,1749799838966,-261.32,0.00020858,3]
[365599351,1749799838976,-783.99,0.00020858,3]
[365599352,1749799838985,-535.067,0.00020858,2]
[365599353,1749799838994,-2090.57,0.00020859,3]
[365599354,1749799839004,-4979.1,0.0002086,3]
[365599355,1749799839014,-151.729675,0.0002087,2]
[365599356,1749799839023,-1215.672366,0.0002087,2]
[365599357,1749799839032,-1215.672366,0.0002087,2]
[365599358,1749799839042,-1215.672366,0.0002087,2]
[365599359,1749799839051,-1215.672366,0.0002087,2]
[365599360,1749799839061,-1215.672366,0.0002087,2]
[365599361,1749799839070,-1215.672366,0.0002087,2]
[365599362,1749799839079,-151.0,0.0002087,2]
[365599363,1749799839089,-151.0,0.00020872,2]
[365599364,1749799839098,-151.0,0.00020872,2]
[365599365,1749799839107,-151.0,0.00020872,2]
[365599366,1749799839116,-151.0,0.00020872,2]
[365599367,1749799839125,-151.0,0.00020872,2]
[365599368,1749799839136,-205.567214,0.00020872,2]
[365599369,1749799839146,-194.941344,0.00020872,2]
[365599370,1749799839155,-194.941344,0.00020872,2]
[365599371,1749799839165,-194.941344,0.00020872,2]
[365599372,1749799839174,-194.941344,0.00020872,2]
[365599373,1749799839183,-151.0,0.00020872,2]
[365599374,1749799839192,-502.98472534,0.00020873,2]
[365599375,1749799839201,-154.87143591,0.00020873,2]
[365599376,1749799839210,-369.54951138,0.00020873,2]
[365599377,1749799839220,-563.10159895,0.00020873,2]
[365599378,1749799839229,-500.0,0.00020873,2]
[365599379,1749799839239,-502.37594052,0.00020873,2]
[365599380,1749799839248,-501.19707588,0.00020873,2]
[365599381,1749799839258,-610.35110382,0.00020873,2]
[365599382,1749799839267,-511.02808622,0.00020873,2]
[365599383,1749799839277,-500.0,0.00020873,2]
[365599384,1749799839286,-500.0,0.00020873,2]
[365599385,1749799839296,-500.0,0.00020873,2]
[365599386,1749799839305,-513.09277418,0.00020873,2]
[365599387,1749799839315,-500.0,0.00020873,2]
[365599388,1749799839324,-500.0,0.00020873,2]
[365599389,1749799839334,-501.64658608,0.00020873,2]
[365599390,1749799839344,-501.64347964,0.00020873,2]
[365599391,1749799839354,-501.13706826,0.00020873,2]
[365599392,1749799839363,-500.0,0.00020873,2]
[365599393,1749799839373,-500.0,0.00020873,2]
[365599394,1749799839383,-508.13161699,0.00020873,2]
[365599395,1749799839395,-504.10443135,0.00020873,2]
[365599396,1749799839405,-505.9369347,0.00020873,2]
[365599397,1749799839415,-503.4414321,0.00020873,2]
[365599398,1749799839425,-506.78013545,0.00020873,2]
[365599399,1749799839435,-500.0,0.00020873,2]
[365599400,1749799839445,-500.0,0.00020873,2]
[365599401,1749799839455,-500.0,0.00020873,2]
[365599402,1749799839467,-500.0,0.00020873,2]
[365599403,1749799839476,-513.31206178,0.00020873,2]
[365599406,1749799839486,-500.0,0.00020873,2]
[365599407,1749799839496,-501.37703058,0.00020873,2]
[365599408,1749799839506,-500.0,0.00020873,2]
[365599409,1749799839516,-500.0,0.00020873,2]
[365599410,1749799839526,-500.0,0.00020873,2]
[365599411,1749799839537,-500.0,0.00020873,2]
[365599412,1749799839547,-606.72946454,0.00020873,2]
[365599413,1749799839557,-502.18448642,0.00020873,2]
[365599414,1749799839567,-500.0,0.00020873,2]
[365599415,1749799839577,-151.0,0.00020874,2]
[365599416,1749799839586,-151.0,0.00020874,2]
[365599417,1749799839596,-245.31972,0.00020874,2]
[365599418,1749799839606,-151.0,0.00020874,2]
[365599419,1749799839616,-151.0,0.00020874,2]
[365599420,1749799839625,-151.0,0.00020874,2]
[365599421,1749799839637,-1763.300814,0.00020874,2]
[365599422,1749799839647,-1763.300814,0.00020874,2]
[365599423,1749799839657,-151.0,0.00020874,2]
[365599424,1749799839667,-151.0,0.00020874,2]
[365599426,1749799839677,-151.0,0.00020874,2]
[365599428,1749799839687,-151.0,0.00020874,2]
[365599430,1749799839697,-214.768915,0.00020874,2]
[365599433,1749799839706,-214.768915,0.00020874,2]
[365599435,1749799839716,-4181.15,0.00020875,3]
[365599437,1749799839726,-213.24139183,0.00020875,3]
[365599440,1749799839735,-12531.02669373,0.00020875,3]
[365599442,1749799839747,-430.70248781,0.00020875,3]
[365599444,1749799839757,-151.0,0.00020885,2]
[365599448,1749799839767,-151.0,0.00020885,2]
[365599451,1749799839777,-151.0,0.00020885,2]
[365599455,1749799839787,-542.870431,0.00020885,2]
[365599458,1749799839796,-542.870431,0.00020885,2]
[365599461,1749799839806,-542.870431,0.00020885,2]
[365599464,1749799839815,-542.870431,0.00020885,2]
[365599467,1749799839825,-542.870431,0.00020885,2]
[365599469,1749799839835,-542.870431,0.00020885,2]
[365599471,1749799839844,-151.0,0.00020885,2]
[365599473,1749799839854,-151.0,0.00020885,2]
[365599475,1749799839864,-151.0,0.00020886,2]
[365599477,1749799839873,-151.0,0.00020886,2]
[365599479,1749799839883,-500.0,0.00020894,2]
[365599481,1749799839892,-238.52,0.00020894,2]
[365599483,1749799839901,-151.0,0.00020895,2]
[365599485,1749799839911,-151.0,0.00020895,2]
[365599487,1749799839921,-1215.672366,0.000209,2]
[365599489,1749799839931,-1215.672366,0.000209,2]
[365599491,1749799839940,-2947.09752678,0.000209,4]
[365599493,1749799839950,-162.380719,0.00020911,2]
[365599495,1749799839960,-2223.04495039,0.00020953,2]
[365599497,1749799839969,-189.29332823,0.00020966,2]
[365599499,1749799839979,-162.37608869,0.0002099,2]
[365599501,1749799839989,-507.60271783,0.00021,9]
[365599503,1749799839998,-155.270145,0.00021024,2]
[365599504,1749799840007,-154.177358,0.00021024,2]
[365599505,1749799840017,-2947.09752673,0.00021038,4]
[365599506,1749799840027,-152.495924,0.00021038,2]
[365599507,1749799840036,-151.0,0.00021095,2]
[365599509,1749799840046,-151.0,0.00021095,2]
[365599511,1749799840055,-175.021273,0.00021095,2]
[365599513,1749799840065,-410.71691079,0.00021095,4]
[365599515,1749799840075,-151.0,0.00021095,2]
[365599517,1749799840084,-151.0,0.00021095,2]
[365599519,1749799840094,-590.70356345,0.00021095,4]
[365599521,1749799840104,-151.0,0.00021095,2]
[365599523,1749799840114,-2497.937806,0.00021095,2]
[365599526,1749799840124,-2497.937806,0.00021095,2]
[365599528,1749799840135,-151.0,0.00021095,2]
[365599530,1749799840145,-151.0,0.00021095,2]
[365599532,1749799840154,-151.0,0.00021095,2]
[365599534,1749799840163,-460.0,0.00021095,4]
[365599535,1749799840174,-456.4892988,0.00021095,4]
[365599538,1749799840184,-151.0,0.00021095,2]
[365599539,1749799840193,-460.0,0.00021095,4]
[365599542,1749799840203,-460.0,0.00021095,4]
[365599543,1749799840213,-460.0,0.00021095,4]
[365599545,1749799840223,-441.20626697,0.00021095,4]
[365599548,1749799840232,-460.0,0.00021095,4]
[365599550,1749799840242,-732.5,0.00021095,2]
[365599552,1749799840252,-583.89597467,0.00021095,4]
[365599554,1749799840262,-438.76681105,0.00021095,4]
[365599556,1749799840272,-151.0,0.00021095,2]
[365599557,1749799840281,-151.0,0.00021095,2]
[365599560,1749799840291,-460.0,0.00021095,4]
[365599562,1749799840301,-1763.300814,0.00021095,2]
[365599564,1749799840310,-1763.300814,0.00021095,2]
[365599566,1749799840320,-151.0,0.00021095,2]
[365599568,1749799840330,-329.86361584,0.00021095,4]
[365599570,1749799840340,-511.17236148,0.00021095,4]
[365599571,1749799840351,-151.0,0.00021095,2]
[365599572,1749799840362,-261.450518,0.00021095,2]
[365599573,1749799840373,-408.04099129,0.00021095,4]
[365599574,1749799840386,-460.0,0.00021095,2]
[365599575,1749799840405,-460.0,0.00021095,4]
[365599576,1749799840424,-179.22613844,0.00021095,2]
[365599577,1749799840434,-1173.81,0.00021095,4]
[365599578,1749799840444,-1287.57,0.00021095,4]
[365599579,1749799840454,-1287.57,0.00021095,4]
[365599580,1749799840465,-1287.57,0.00021095,4]
[365599581,1749799840475,-1287.57,0.00021095,4]
[365599582,1749799840484,-1287.57,0.00021095,4]
[365599583,1749799840494,-1287.57,0.00021095,4]
[365599584,1749799840503,-1287.57,0.00021095,4]
[365599585,1749799840513,-1287.57,0.00021095,4]
[365599586,1749799840523,-1287.57,0.00021095,4]
[365599587,1749799840532,-1287.57,0.00021095,4]
[365599588,1749799840542,-571.07,0.00021095,4]
[365599590,1749799840552,-460.0,0.00021095,4]
[365599591,1749799840562,-241.85705686,0.00021095,4]
[365599593,1749799840571,-460.0,0.00021095,4]
[365599595,1749799840581,-490.36798184,0.00021095,4]
[365599597,1749799840591,-613.79,0.00021095,4]
[365599598,1749799840600,-460.0,0.00021095,4]
[365599600,1749799840610,-460.0,0.00021095,4]
[365599602,1749799840619,-194.941344,0.00021095,2]
[365599604,1749799840629,-194.941344,0.00021095,2]
[365599606,1749799840639,-1089.66,0.00021095,4]
[365599608,1749799840649,-674.41,0.00021095,4]
[365599610,1749799840658,-431.33879008,0.00021095,4]
[365599612,1749799840668,-460.0,0.00021095,4]
[365599613,1749799840677,-1215.672366,0.00021095,2]
[365599615,1749799840689,-1215.672366,0.00021095,2]
[365599617,1749799840698,-460.0,0.00021095,4]
[365599619,1749799840708,-460.0,0.00021095,4]
[365599621,1749799840718,-460.74358994,0.00021095,4]
[365599623,1749799840728,-460.70264779,0.00021095,4]
[365599625,1749799840738,-498.1530186,0.00021095,4]
[365599627,1749799840747,-348.7993533,0.00021095,4]
[365599629,1749799840757,-317.95337859,0.00021095,4]
[365599630,1749799840766,-217.76592153,0.00021095,4]
[365599632,1749799840775,-460.0,0.00021095,4]
[365599634,1749799840784,-443.96257097,0.00021095,4]
[365599636,1749799840794,-468.45010096,0.00021095,4]
[365599638,1749799840802,-476.27917608,0.00021095,4]
[365599639,1749799840812,-440.18502092,0.00021095,4]
[365599641,1749799840821,-465.73827742,0.00021095,4]
[365599643,1749799840831,-460.0,0.00021095,4]
[365599645,1749799840840,-460.0,0.00021095,4]
[365599647,1749799840849,-460.0,0.00021095,4]
[365599649,1749799840859,-460.0,0.00021095,4]
[365599651,1749799840868,-480.27,0.00021095,4]
[365599653,1749799840877,-460.0,0.00021095,4]
[365599654,1749799840887,-460.0,0.00021095,4]
[365599656,1749799840896,-1146.46,0.00021095,4]
[365599658,1749799840908,-583.96894767,0.00021095,4]
[365599660,1749799840917,-214.768915,0.00021095,2]
[365599662,1749799840927,-214.768915,0.00021095,2]
[365599664,1749799840937,-460.0,0.00021095,4]
[365599666,1749799840947,-483.6561122,0.00021095,4]
[365599668,1749799840956,-501.66020466,0.00021095,4]
[365599670,1749799840967,-460.0,0.00021095,4]
[365599671,1749799840976,-460.0,0.00021095,4]
[365599673,1749799840985,-460.0,0.00021095,4]
[365599675,1749799840995,-684.08,0.00021095,4]
[365599677,1749799841004,-620.25,0.00021095,4]
[365599679,1749799841013,-460.0,0.00021095,4]
[365599681,1749799841022,-446.33010914,0.00021095,4]
[365599683,1749799841032,-1198.41,0.00021095,4]
[365599684,1749799841041,-460.0,0.00021095,4]
[365599686,1749799841049,-422.77141095,0.00021095,4]
[365599688,1749799841059,-460.0,0.00021095,4]
[365599690,1749799841068,-460.0,0.00021095,4]
[365599692,1749799841078,-460.0,0.00021095,4]
[365599694,1749799841087,-2223.04495039,0.0002115,2]
[365599696,1749799841097,-2947.09752673,0.00021176,4]
[365599697,1749799841106,-334.25482518,0.00021262,2]
[365599699,1749799841115,-1287.57,0.00021281,4]
[365599701,1749799841125,-346.83872851,0.00021282,2]
[365599703,1749799841135,-2947.09752673,0.00021314,5]
[365599705,1749799841144,-542.870431,0.00021314,2]
[365599707,1749799841153,-542.870431,0.00021314,2]
[365599708,1749799841162,-214.768915,0.00021314,2]
[365599710,1749799841172,-214.768915,0.00021314,2]
[365599712,1749799841181,-545.23648232,0.00021345,2]
[365599714,1749799841190,-2223.04495039,0.00021346,2]
[365599716,1749799841199,-1287.57,0.00021368,4]
[365599718,1749799841209,-151.0,0.00021369,2]
[365599720,1749799841218,-151.0,0.00021369,2]
[365599721,1749799841227,-151.0,0.00021369,2]
[365599723,1749799841236,-151.0,0.00021369,2]
[365599725,1749799841246,-460.0,0.00021369,4]